fUST/lending_fUST_20240422
["ID","MTS","AMOUNT","RATE_DAILY","PERIOD"]
[323169321,1713767442630,-300.0,0.00021399,2]
[323169322,1713767442639,-300.0,0.00021399,2]
[323169323,1713767442649,-153.0,0.000214,2]
[323169324,1713767442657,-120.68259569,0.000214,2]
[323169372,1713767443824,-32.31740431,0.000214,2]
[323169373,1713767443834,-203.544759,0.000214,2]
[323169374,1713767443844,-153.0,0.000214,2]
[323169375,1713767443853,-306.0,0.000214,2]
[323169376,1713767443862,-203.544759,0.000214,2]
[323169377,1713767443871,-153.0,0.000214,2]
[323169378,1713767443880,-203.544759,0.000214,2]
[323169379,1713767443890,-153.0,0.000214,2]
[323169380,1713767443900,-153.0,0.000214,2]
[323169381,1713767443910,-203.544759,0.000214,2]
[323169382,1713767443919,-153.0,0.000214,2]
[323169383,1713767443929,-203.544759,0.000214,2]
[323169385,1713767443939,-203.4958838,0.000215,2]
[323169386,1713767443948,-203.4958838,0.000215,2]
[323169387,1713767443958,-203.4958838,0.000215,2]
[323169388,1713767443967,-203.4958838,0.000215,2]
[323169389,1713767443976,-203.4958838,0.000215,2]
[323169390,1713767443986,-306.0,0.000215,2]
[323169391,1713767443997,-153.0,0.000215,2]
[323169392,1713767444007,-203.544759,0.000215,2]
[323169393,1713767444016,-203.544759,0.000215,2]
[323169394,1713767444026,-203.544759,0.000215,2]
[323169395,1713767444035,-153.0,0.000215,2]
[323169397,1713767444044,-153.5866785,0.000215,2]
[323169398,1713767444053,-153.0,0.000215,2]
[323169399,1713767444063,-153.0,0.000215,2]
[323169400,1713767444072,-203.544759,0.000215,2]
[323169401,1713767444084,-203.544759,0.000215,2]
[323169402,1713767444093,-203.544759,0.000215,2]
[323169403,1713767444101,-203.544759,0.000215,2]
[323169404,1713767444112,-203.544759,0.000215,2]
[323169405,1713767444121,-203.544759,0.000215,2]
[323169406,1713767444130,-203.544759,0.000215,2]
[323169407,1713767444139,-203.4958838,0.000217,2]
[323169408,1713767444148,-203.544759,0.000217,2]
[323169409,1713767444158,-419.39507495,0.000217,2]
[323169410,1713767444166,-153.9037671,0.000217,2]
[323169411,1713767444176,-203.544759,0.000217,2]
[323169412,1713767444185,-2137.28005769,0.00021817,2]
[323169413,1713767444195,-2000.0,0.00021817,2]
[323169414,1713767444204,-1000.0,0.000219,2]
[323169415,1713767444214,-1653.42537771,0.00021915,2]
[323169416,1713767444223,-3767.61447341,0.00021915,2]
[323169417,1713767444233,-886.94392181,0.00021915,2]
[323169418,1713767444243,-194.23040749,0.00021915,2]
[323169419,1713767444252,-528.0705938,0.00021915,2]
[323169420,1713767444262,-155.01258239,0.00021915,2]
[323169421,1713767444275,-1265.0086628,0.00021915,2]
[323169422,1713767444290,-155.34832634,0.00021915,2]
[323169423,1713767444301,-155.15925906,0.00021915,2]
[323169424,1713767444312,-615.82035774,0.00021915,2]
[323169425,1713767444322,-155.11443757,0.00021915,2]
[323169426,1713767444334,-300.0,0.00021916,2]
[323169427,1713767444343,-270.8,0.00021916,2]
[323169428,1713767444353,-2104.93628089,0.00021916,2]
[323169429,1713767444363,-192.21940931,0.00021916,2]
[323169430,1713767444373,-236.39428914,0.00021916,2]
[323169431,1713767444383,-292.21448362,0.00021916,2]
[323169432,1713767444393,-498.26278836,0.00021916,2]
[323169433,1713767444403,-160.55070373,0.00021916,2]
[323169434,1713767444412,-160.0,0.00021916,2]
[323169435,1713767444423,-160.0,0.00021916,2]
[323169436,1713767444432,-500.0,0.00021917,2]
[323169437,1713767444441,-500.0,0.00021917,2]
[323169438,1713767444451,-569.99446454,0.00021917,2]
[323169439,1713767444461,-501.09993963,0.00021917,2]
[323169440,1713767444470,-185.8340532,0.00021917,2]
[323169441,1713767444480,-707.57,0.00021917,2]
[323169442,1713767444489,-199.89613647,0.00021917,2]
[323169443,1713767444498,-500.0,0.00021917,2]
[323169444,1713767444508,-524.37,0.00021917,2]
[323169445,1713767444517,-500.0,0.00021917,2]
[323169446,1713767444527,-500.0,0.00021917,2]
[323169447,1713767444537,-500.0,0.00021917,2]
[323169448,1713767444547,-1036.09,0.00021917,2]
[323169449,1713767444556,-500.0,0.00021917,2]
[323169450,1713767444566,-507.30928287,0.00021917,2]
[323169451,1713767444577,-513.54,0.00021917,2]
[323169452,1713767444587,-500.0,0.00021917,2]
[323169453,1713767444597,-500.0,0.00021917,2]
[323169454,1713767444606,-500.0,0.00021917,2]
[323169455,1713767444615,-704.84,0.00021917,2]
[323169456,1713767444625,-580.93,0.00021917,2]
[323169457,1713767444635,-268.08554988,0.00021917,2]
[323169458,1713767444644,-385.98813929,0.00021917,2]
[323169459,1713767444654,-500.0,0.00021917,2]
[323169460,1713767444663,-500.0,0.00021917,2]
[323169461,1713767444674,-500.0,0.00021917,2]
[323169462,1713767444684,-500.0,0.00021917,2]
[323169463,1713767444694,-500.0,0.00021917,2]
[323169464,1713767444703,-500.0,0.00021917,2]
[323169465,1713767444712,-242.06974814,0.00021917,2]
[323169466,1713767444721,-752.43,0.00021917,2]
[323169467,1713767444731,-500.0,0.00021917,2]
[323169468,1713767444740,-500.0,0.00021917,2]
[323169469,1713767444750,-500.0,0.00021917,2]
[323169470,1713767444761,-500.0,0.00021917,2]
[323169471,1713767444771,-633.67,0.00021917,2]
[323169472,1713767444782,-1247.66,0.00021917,2]
[323169473,1713767444791,-500.0,0.00021917,2]
[323169474,1713767444800,-500.0,0.00021917,2]
[323169475,1713767444809,-500.0,0.00021917,2]
[323169476,1713767444819,-2504.91,0.00021917,2]
[323169477,1713767444829,-987.33,0.00021917,2]
[323169478,1713767444838,-646.74442247,0.00021917,2]
[323169479,1713767444848,-500.0,0.00021917,2]
[323169480,1713767444859,-627.3,0.00021917,2]
[323169481,1713767444870,-500.0,0.00021917,2]
[323169482,1713767444881,-500.0,0.00021917,2]
[323169483,1713767444891,-500.0,0.00021917,2]
[323169484,1713767444902,-500.0,0.00021917,2]
[323169485,1713767444911,-500.0,0.00021917,2]
[323169486,1713767444921,-500.0,0.00021917,2]
[323169487,1713767444930,-500.0,0.00021917,2]
[323169488,1713767444939,-2866.49,0.00021917,2]
[323169489,1713767444949,-500.0,0.00021917,2]
[323169490,1713767444958,-500.0,0.00021917,2]
[323169491,1713767444967,-500.0,0.00021917,2]
[323169492,1713767444977,-500.0,0.00021917,2]
[323169493,1713767444986,-500.0,0.00021917,2]
[323169494,1713767444996,-500.0,0.00021917,2]
[323169495,1713767445005,-500.0,0.00021917,2]
[323169496,1713767445014,-500.0,0.00021917,2]
[323169497,1713767445024,-500.0,0.00021917,2]
[323169498,1713767445034,-500.0,0.00021917,2]
[323169499,1713767445044,-500.0,0.00021917,2]
[323169500,1713767445053,-500.0,0.00021917,2]
[323169501,1713767445063,-500.0,0.00021917,2]
[323169502,1713767445072,-500.0,0.00021917,2]
[323169503,1713767445083,-500.0,0.00021917,2]
[323169504,1713767445093,-899.34,0.00021917,2]
[323169505,1713767445103,-500.0,0.00021917,2]
[323169506,1713767445112,-500.0,0.00021917,2]
[323169507,1713767445122,-500.0,0.00021917,2]
[323169508,1713767445132,-500.0,0.00021917,2]
[323169509,1713767445141,-500.0,0.00021917,2]
[323169510,1713767445152,-500.0,0.00021917,2]
[323169511,1713767445162,-583.992907,0.00021917,2]
[323169512,1713767445171,-500.0,0.00021917,2]
[323169513,1713767445180,-500.0,0.00021917,2]
[323169514,1713767445190,-154.81422293,0.00021917,2]
[323169515,1713767445200,-502.5839352,0.00021917,2]
[323169516,1713767445208,-791.63,0.00021917,2]
[323169517,1713767445217,-500.0,0.00021917,2]
[323169518,1713767445227,-464.8522927,0.00021917,2]
[323169519,1713767445237,-500.0,0.00021917,2]
[323169520,1713767445246,-1249.13,0.00021917,2]
[323169521,1713767445255,-843.39,0.00021917,2]
[323169522,1713767445264,-500.0,0.00021917,2]
[323169523,1713767445278,-683.88,0.00021917,2]
[323169524,1713767445288,-500.0,0.00021917,2]
[323169525,1713767445297,-500.0,0.00021917,2]
[323169526,1713767445307,-500.0,0.00021917,2]
[323169527,1713767445318,-500.0,0.00021917,2]
[323169528,1713767445327,-500.0,0.00021917,2]
[323169529,1713767445335,-715.34,0.00021917,2]
[323169530,1713767445344,-500.0,0.00021917,2]
[323169531,1713767445354,-500.0,0.00021917,2]
[323169532,1713767445363,-500.0,0.00021917,2]
[323169533,1713767445373,-500.0,0.00021917,2]
[323169534,1713767445382,-500.0,0.00021917,2]
[323169535,1713767445392,-500.0,0.00021917,2]
[323169536,1713767445401,-500.0,0.00021917,2]
[323169537,1713767445410,-500.0,0.00021917,2]
[323169538,1713767445421,-500.0,0.00021917,2]
[323169539,1713767445431,-482.1180714,0.00021917,2]
[323169540,1713767445440,-567.03,0.00021917,2]
[323169541,1713767445449,-500.0,0.00021917,2]
[323169542,1713767445460,-500.0,0.00021917,2]
[323169543,1713767445469,-500.0,0.00021917,2]
[323169544,1713767445479,-2000.0,0.00021917,2]
[323169545,1713767445488,-500.0,0.00021917,2]
[323169546,1713767445497,-624.83,0.00021917,2]
[323169547,1713767445506,-682.75,0.00021917,2]
[323169548,1713767445516,-500.0,0.00021917,2]
[323169549,1713767445525,-500.0,0.00021917,2]
[323169550,1713767445535,-500.0,0.00021917,2]
[323169551,1713767445545,-500.0,0.00021917,2]
[323169552,1713767445554,-500.0,0.00021917,2]
[323169553,1713767445563,-500.0,0.00021917,2]
[323169554,1713767445572,-500.0,0.00021917,2]
[323169555,1713767445583,-1000.49,0.00021917,2]
[323169556,1713767445592,-1684.08,0.00021917,2]
[323169557,1713767445601,-2209.51,0.00021917,2]
[323169558,1713767445611,-500.0,0.00021917,2]
[323169559,1713767445620,-500.0,0.00021917,2]
[323169560,1713767445629,-510.08951815,0.00021917,2]
[323169561,1713767445638,-1205.97,0.00021917,2]
[323169562,1713767445647,-501.3429471,0.00021917,2]
[323169563,1713767445657,-500.0,0.00021917,2]
[323169564,1713767445666,-635.88,0.00021917,2]
[323169565,1713767445676,-500.0,0.00021917,2]
[323169566,1713767445686,-1141.04,0.00021917,2]
[323169567,1713767445696,-500.0,0.00021917,2]
[323169568,1713767445705,-500.0,0.00021917,2]
[323169569,1713767445715,-500.0,0.00021917,2]
[323169570,1713767445724,-2672.74,0.00021917,2]
[323169571,1713767445733,-500.0,0.00021917,2]
[323169572,1713767445742,-635.55,0.00021917,2]
[323169573,1713767445751,-500.0,0.00021917,2]
[323169574,1713767445761,-500.0,0.00021917,2]
[323169575,1713767445770,-500.0,0.00021917,2]
[323169576,1713767445779,-621.93,0.00021917,2]
[323169577,1713767445789,-504.87,0.00021917,2]
[323169578,1713767445798,-6486.86,0.00021917,2]
[323169579,1713767445807,-500.0,0.00021917,2]
[323169580,1713767445817,-500.0,0.00021917,2]
[323169581,1713767445826,-953.24,0.00021917,2]
[323169582,1713767445835,-1932.71,0.00021917,2]
[323169583,1713767445844,-515.1,0.00021917,2]
[323169584,1713767445853,-390.57208478,0.00021917,2]
[323169585,1713767445862,-512.03868981,0.00021917,2]
[323169586,1713767445871,-500.0,0.00021917,2]
[323169587,1713767445881,-1676.97,0.00021917,2]
[323169588,1713767445891,-500.0,0.00021917,2]
[323169589,1713767445901,-533.15,0.00021917,2]
[323169590,1713767445911,-5045.78,0.00021917,2]
[323169591,1713767445920,-500.0,0.00021917,2]
[323169592,1713767445929,-578.61852311,0.00021917,2]
[323169593,1713767445939,-500.0,0.00021917,2]
[323169594,1713767445949,-1992.6,0.00021917,2]
[323169595,1713767445959,-500.0,0.00021917,2]
[323169596,1713767445968,-500.0,0.00021917,2]
[323169597,1713767445978,-500.0,0.00021917,2]
[323169598,1713767445987,-500.0,0.00021917,2]
[323169599,1713767445998,-345.83256935,0.00021917,2]
[323169600,1713767446007,-869.82,0.00021917,2]
[323169601,1713767446015,-500.0,0.00021917,2]
[323169602,1713767446024,-2136.64,0.00021917,2]
[323169603,1713767446033,-1500.47,0.00021917,2]
[323169604,1713767446043,-518.2,0.00021917,2]
[323169605,1713767446052,-500.0,0.00021917,2]
[323169606,1713767446062,-500.0,0.00021917,2]
[323169607,1713767446071,-500.0,0.00021917,2]
[323169608,1713767446082,-968.92,0.00021917,2]
[323169609,1713767446090,-746.37,0.00021917,2]
[323169610,1713767446099,-500.0,0.00021917,2]
[323169611,1713767446109,-519.72911189,0.00021917,2]
[323169612,1713767446118,-1007.63,0.00021917,2]
[323169613,1713767446127,-1463.62,0.00021917,2]
[323169614,1713767446136,-500.0,0.00021917,2]
[323169615,1713767446146,-500.0,0.00021917,2]
[323169616,1713767446155,-500.0,0.00021917,2]
[323169617,1713767446164,-3135.6,0.00021917,2]
[323169618,1713767446174,-550.13789124,0.00021917,2]
[323169619,1713767446183,-500.0,0.00021917,2]
[323169620,1713767446193,-1108.26,0.00021917,2]
[323169621,1713767446202,-500.0,0.00021917,2]
[323169622,1713767446211,-500.0,0.00021917,2]
[323169623,1713767446220,-500.0,0.00021917,2]
[323169624,1713767446229,-500.0,0.00021917,2]
[323169625,1713767446238,-589.34,0.00021917,2]
[323169626,1713767446247,-698.37,0.00021917,2]
[323169627,1713767446256,-500.0,0.00021917,2]
[323169628,1713767446266,-166.915772,0.00021917,2]
[323169629,1713767446280,-500.0,0.00021917,2]
[323169630,1713767446289,-752.81,0.00021917,2]
[323169631,1713767446414,-500.0,0.00021917,2]
[323169632,1713767446424,-500.0,0.00021917,2]
[323169633,1713767446434,-500.0,0.00021917,2]
[323169634,1713767446443,-627.83520974,0.00021917,2]
[323169635,1713767446453,-638.4,0.00021917,2]
[323169636,1713767446463,-500.0,0.00021917,2]
[323169637,1713767446473,-500.0,0.00021917,2]
[323169638,1713767446482,-1136.03,0.00021917,2]
[323169639,1713767446492,-500.0,0.00021917,2]
[323169640,1713767446501,-500.0,0.00021917,2]
[323169641,1713767446510,-500.0,0.00021917,2]
[323169642,1713767446520,-312.68615775,0.00021917,2]
[323169643,1713767446529,-1768.62,0.00021917,2]
[323169644,1713767446539,-500.0,0.00021917,2]
[323169645,1713767446548,-500.0,0.00021917,2]
[323169646,1713767446557,-632.5,0.00021917,2]
[323169647,1713767446567,-500.0,0.00021917,2]
[323169648,1713767446577,-500.0,0.00021917,2]
[323169649,1713767446586,-692.59,0.00021917,2]
[323169650,1713767446595,-500.0,0.00021917,2]
[323169651,1713767446605,-500.0,0.00021917,2]
[323169652,1713767446614,-830.9,0.00021917,2]
[323169653,1713767446623,-500.0,0.00021917,2]
[323169654,1713767446633,-500.0,0.00021917,2]
[323169655,1713767446642,-1957.73,0.00021917,2]
[323169656,1713767446651,-2206.14,0.00021917,2]
[323169657,1713767446660,-500.0,0.00021917,2]
[323169658,1713767446669,-632.8,0.00021917,2]
[323169659,1713767446678,-500.0,0.00021917,2]
[323169660,1713767446687,-567.92,0.00021917,2]
[323169661,1713767446696,-500.0,0.00021917,2]
[323169662,1713767446706,-500.0,0.00021917,2]
[323169663,1713767446716,-500.0,0.00021917,2]
[323169664,1713767446725,-500.0,0.00021917,2]
[323169665,1713767446735,-500.0,0.00021917,2]
[323169666,1713767446744,-1137.99,0.00021917,2]
[323169667,1713767446754,-637.22,0.00021917,2]
[323169668,1713767446763,-500.0,0.00021917,2]
[323169669,1713767446772,-527.20962089,0.00021917,2]
[323169670,1713767446781,-500.0,0.00021917,2]
[323169671,1713767446790,-763.56,0.00021917,2]
[323169672,1713767446800,-500.0,0.00021917,2]
[323169673,1713767446810,-500.0,0.00021917,2]
[323169674,1713767446819,-812.55,0.00021917,2]
[323169675,1713767446829,-502.47912495,0.00021917,2]
[323169676,1713767446838,-1194.74,0.00021917,2]
[323169677,1713767446847,-767.23,0.00021917,2]
[323169678,1713767446857,-500.0,0.00021917,2]
[323169679,1713767446866,-500.0,0.00021917,2]
[323169680,1713767446876,-500.0,0.00021917,2]
[323169681,1713767446885,-500.0,0.00021917,2]
[323169682,1713767446894,-500.0,0.00021917,2]
[323169683,1713767446904,-850.36,0.00021917,2]
[323169684,1713767446914,-500.0,0.00021917,2]
[323169685,1713767446923,-500.0,0.00021917,2]
[323169686,1713767446934,-500.0,0.00021917,2]
[323169687,1713767446946,-1002.34072,0.00021917,2]
[323169688,1713767446958,-1002.34072,0.00021917,2]
[323169689,1713767446968,-1002.34072,0.00021917,2]
[323169690,1713767446977,-500.0,0.00021917,2]
[323169691,1713767446986,-1002.34072,0.00021917,2]
[323169692,1713767446996,-1002.34072,0.00021917,2]
[323169693,1713767447005,-1002.34072,0.00021917,2]
[323169694,1713767447016,-500.0,0.00021917,2]
[323169695,1713767447025,-1002.34072,0.00021917,2]
[323169696,1713767447036,-500.0,0.00021917,2]
[323169697,1713767447045,-500.0,0.00021917,2]
[323169698,1713767447054,-151.0,0.00021917,2]
[323169700,1713767447063,-1002.34072,0.00021917,2]
[323169701,1713767447073,-1002.34072,0.00021917,2]
[323169702,1713767447082,-1002.34072,0.00021917,2]
[323169703,1713767447092,-1002.34072,0.00021917,2]
[323169704,1713767447101,-1002.34072,0.00021917,2]
[323169705,1713767447110,-535.87,0.00021917,2]
[323169706,1713767447121,-500.0,0.00021917,2]
[323169708,1713767447130,-500.0,0.00021917,2]
[323169710,1713767447140,-1002.34072,0.00021917,2]
[323169711,1713767447149,-1002.34072,0.00021917,2]
[323169712,1713767447158,-500.0,0.00021917,2]
[323169713,1713767447168,-500.0,0.00021917,2]
[323169714,1713767447176,-862.67,0.00021917,2]
[323169715,1713767447186,-501.01989924,0.00021917,2]
[323169716,1713767447195,-1258.19,0.00021917,2]
[323169717,1713767447204,-500.0,0.00021917,2]
[323169718,1713767447213,-500.0,0.00021917,2]
[323169719,1713767447222,-500.0,0.00021917,2]
[323169720,1713767447232,-500.0,0.00021917,2]
[323169721,1713767447242,-500.0,0.00021917,2]
[323169722,1713767447251,-500.0,0.00021917,2]
[323169723,1713767447260,-500.0,0.00021917,2]
[323169724,1713767447271,-500.0,0.00021917,2]
[323169725,1713767447282,-500.0,0.00021917,2]
[323169726,1713767447292,-500.0,0.00021917,2]
[323169727,1713767447301,-500.0,0.00021917,2]
[323169728,1713767447311,-3010.59,0.00021917,2]
[323169729,1713767447320,-500.0,0.00021917,2]
[323169730,1713767447330,-500.0,0.00021917,2]
[323169731,1713767447340,-500.0,0.00021917,2]
[323169732,1713767447351,-500.0,0.00021917,2]
[323169733,1713767447361,-500.0,0.00021917,2]
[323169734,1713767447371,-500.0,0.00021917,2]
[323169735,1713767447380,-500.0,0.00021917,2]
[323169736,1713767447389,-559.53187929,0.00021917,2]
[323169737,1713767447398,-500.0,0.00021917,2]
[323169738,1713767447407,-818.47,0.00021917,2]
[323169739,1713767447416,-1416.08,0.00021917,2]
[323169740,1713767447426,-500.0,0.00021917,2]
[323169741,1713767447435,-500.0,0.00021917,2]
[323169742,1713767447445,-532.12,0.00021917,2]
[323169743,1713767447454,-521.07373048,0.00021917,2]
[323169744,1713767447463,-500.0,0.00021917,2]
[323169745,1713767447472,-3829.87,0.00021917,2]
[323169746,1713767447481,-1193.59,0.00021917,2]
[323169747,1713767447491,-500.0,0.00021917,2]
[323169748,1713767447500,-500.0,0.00021917,2]
[323169749,1713767447510,-2541.86,0.00021917,2]
[323169750,1713767447519,-500.0,0.00021917,2]
[323169751,1713767447529,-500.0,0.00021917,2]
[323169752,1713767447538,-880.11,0.00021917,2]
[323169753,1713767447548,-1422.5,0.00021917,2]
[323169754,1713767447557,-500.0,0.00021917,2]
[323169755,1713767447567,-500.0,0.00021917,2]
[323169756,1713767447577,-500.0,0.00021917,2]
[323169757,1713767447587,-500.0,0.00021917,2]
[323169758,1713767447596,-500.0,0.00021917,2]
[323169759,1713767447604,-815.76,0.00021917,2]
[323169760,1713767447613,-579.37,0.00021917,2]
[323169761,1713767447623,-1663.93,0.00021917,2]
[323169762,1713767447632,-3021.16,0.00021917,2]
[323169763,1713767447642,-500.0,0.00021917,2]
[323169764,1713767447651,-2392.42,0.00021917,2]
[323169765,1713767447660,-3637.22,0.00021917,2]
[323169766,1713767447670,-674.03,0.00021917,2]
[323169767,1713767447680,-868.43,0.00021917,2]
[323169768,1713767447689,-500.0,0.00021917,2]
[323169769,1713767447700,-500.0,0.00021917,2]
[323169770,1713767447710,-500.0,0.00021917,2]
[323169771,1713767447719,-500.0,0.00021917,2]
[323169772,1713767447728,-9522.5,0.00021917,2]
[323169773,1713767447738,-2759.83,0.00021917,2]
[323169774,1713767447747,-500.0,0.00021917,2]
[323169775,1713767447757,-500.0,0.00021917,2]
[323169776,1713767447766,-500.0,0.00021917,2]
[323169777,1713767447775,-500.0,0.00021917,2]
[323169778,1713767447784,-500.0,0.00021917,2]
[323169779,1713767447793,-509.02539192,0.00021917,2]
[323169780,1713767447804,-500.0,0.00021917,2]
[323169781,1713767447813,-500.0,0.00021917,2]
[323169782,1713767447822,-829.76,0.00021917,2]
[323169783,1713767447832,-6890.08,0.00021917,2]
[323169784,1713767447841,-500.0,0.00021917,2]
[323169785,1713767447850,-500.0,0.00021917,2]
[323169786,1713767447860,-500.0,0.00021917,2]
[323169787,1713767447870,-2612.49,0.00021917,2]
[323169788,1713767447879,-500.0,0.00021917,2]
[323169789,1713767447888,-597.14,0.00021917,2]
[323169790,1713767447897,-500.0,0.00021917,2]
[323169791,1713767447906,-500.0,0.00021917,2]
[323169792,1713767447915,-500.0,0.00021917,2]
[323169793,1713767447924,-816.05,0.00021917,2]
[323169794,1713767447933,-500.0,0.00021917,2]
[323169795,1713767447942,-1249.87,0.00021917,2]
[323169796,1713767447952,-500.0,0.00021917,2]
[323169797,1713767447961,-2466.98,0.00021917,2]
[323169798,1713767447971,-500.0,0.00021917,2]
[323169799,1713767447980,-500.0,0.00021917,2]
[323169800,1713767447989,-1056.69,0.00021917,2]
[323169801,1713767447999,-1951.92,0.00021917,2]
[323169802,1713767448008,-500.0,0.00021917,2]
[323169803,1713767448017,-1929.19,0.00021917,2]
[323169804,1713767448026,-1379.2,0.00021917,2]
[323169805,1713767448035,-1263.06,0.00021917,2]
[323169806,1713767448044,-500.0,0.00021917,2]
[323169807,1713767448055,-558.21,0.00021917,2]
[323169808,1713767448065,-500.0,0.00021917,2]
[323169809,1713767448075,-1746.95,0.00021917,2]
[323169810,1713767448084,-1482.89,0.00021917,2]
[323169811,1713767448092,-1091.08,0.00021917,2]
[323169812,1713767448102,-500.0,0.00021917,2]
[323169813,1713767448111,-500.0,0.00021917,2]
[323169814,1713767448121,-500.0,0.00021917,2]
[323169815,1713767448130,-500.0,0.00021917,2]
[323169816,1713767448139,-619.66,0.00021917,2]
[323169817,1713767448148,-1300.13,0.00021917,2]
[323169818,1713767448157,-500.0,0.00021917,2]
[323169819,1713767448167,-500.0,0.00021917,2]
[323169820,1713767448176,-514.00412393,0.00021917,2]
[323169821,1713767448185,-846.8,0.00021917,2]
[323169822,1713767448195,-1180.91,0.00021917,2]
[323169823,1713767448204,-500.0,0.00021917,2]
[323169824,1713767448215,-2123.23,0.00021917,2]
[323169825,1713767448224,-500.0,0.00021917,2]
[323169826,1713767448233,-869.91,0.00021917,2]
[323169827,1713767448243,-500.0,0.00021917,2]
[323169828,1713767448252,-9481.21,0.00021917,2]
[323169829,1713767448261,-500.0,0.00021917,2]
[323169830,1713767448272,-500.0,0.00021917,2]
[323169831,1713767448281,-500.0,0.00021917,2]
[323169832,1713767448290,-500.0,0.00021917,2]
[323169833,1713767448299,-630.26,0.00021917,2]
[323169834,1713767448308,-752.04,0.00021917,2]
[323169835,1713767448318,-500.0,0.00021917,2]
[323169836,1713767448327,-1452.83,0.00021917,2]
[323169837,1713767448336,-500.0,0.00021917,2]
[323169838,1713767448347,-500.0,0.00021917,2]
[323169839,1713767448356,-1035.97,0.00021917,2]
[323169840,1713767448365,-14628.82,0.00021917,2]
[323169841,1713767448375,-1035.97,0.00021917,2]
[323169842,1713767448383,-1035.97,0.00021917,2]
[323169843,1713767448393,-500.0,0.00021917,2]
[323169844,1713767448401,-1035.97,0.00021917,2]
[323169845,1713767448411,-1035.97,0.00021917,2]
[323169846,1713767448421,-1035.97,0.00021917,2]
[323169847,1713767448430,-1035.97,0.00021917,2]
[323169848,1713767448439,-609.35360938,0.00021917,2]
[323169849,1713767448448,-1035.97,0.00021917,2]
[323169850,1713767448457,-1035.97,0.00021917,2]
[323169851,1713767448466,-1035.97,0.00021917,2]
[323169852,1713767448475,-10102.93,0.00021917,2]
[323169853,1713767448484,-500.0,0.00021917,2]
[323169854,1713767448493,-761.11,0.00021917,2]
[323169855,1713767448503,-500.0,0.00021917,2]
[323169856,1713767448512,-500.0,0.00021917,2]
[323169857,1713767448522,-1364.64,0.00021917,2]
[323169858,1713767448531,-908.62,0.00021917,2]
[323169859,1713767448540,-1011.45,0.00021917,2]
[323169860,1713767448549,-500.0,0.00021917,2]
[323169861,1713767448558,-12641.9,0.00021917,2]
[323169862,1713767448567,-500.0,0.00021917,2]
[323169863,1713767448576,-1176.04,0.00021917,2]
[323169864,1713767448585,-500.0,0.00021917,2]
[323169865,1713767448594,-500.0,0.00021917,2]
[323169866,1713767448603,-486.55181255,0.00021917,2]
[323169867,1713767448612,-500.0,0.00021917,2]
[323169868,1713767448621,-1769.8,0.00021917,2]
[323169869,1713767448630,-500.0,0.00021917,2]
[323169870,1713767448639,-500.0,0.00021917,2]
[323169871,1713767448648,-1018.41,0.00021917,2]
[323169872,1713767448656,-500.0,0.00021917,2]